bitfinex-derivatives/quotes_SOLF0:USTF0_20250101
["timestamp","ask_amount","ask_price","bid_price","bid_amount"]
[1735765270452,8.14843696,194.48,194.41,8.14843696]
[1735765271055,8.14843696,194.48,194.39,2.98]
[1735765271254,8.14843696,194.46,194.39,11.12843696]
[1735765271658,8.14843696,194.46,194.4,4.98301475]
[1735765271848,8.14843696,194.46,194.42,2.5767]
[1735765272048,57.32309759,194.56,194.37,1.479]
[1735765272049,8.14843696,194.44,194.37,1.479]
[1735765272248,8.14843696,194.42,194.37,1.479]
[1735765272756,8.14843696,194.42,194.37,4.0563]
[1735765273755,8.14843696,194.42,194.38,2.5772]
[1735765273958,56.40943553,194.51,194.37,1.479]
[1735765274165,57.32309759,194.53,194.37,1.479]
[1735765274166,8.14843696,194.49,194.43,8.14843696]
[1735765274350,2.98,194.52,194.43,8.14843696]
[1735765274551,8.14843696,194.51,194.45,8.14843696]
[1735765274749,57.32309759,194.53,194.47,8.14843696]
[1735765274952,57.32309759,194.53,194.48,2.98]
[1735765275248,8.14843696,194.55,194.52,2.5754]
[1735765275453,8.14843696,194.55,194.49,8.14843696]
[1735765276260,12.71669187,194.59,194.51,2.5755]
[1735765277355,12.71669187,194.59,194.49,2.5757]
[1735765277557,2.98,194.61,194.48,2.98]
[1735765277761,12.71669187,194.61,194.49,1.5036]
[1735765278057,12.71669187,194.61,194.51,2.5754]
[1735765278257,2.98,194.63,194.49,1.5036]
[1735765278458,12.71669187,194.61,194.49,1.5036]
[1735765278855,12.71669187,194.61,194.52,2.5754]
[1735765279061,12.71669187,194.61,194.49,1.5036]
[1735765279262,12.71669187,194.61,194.5,2.5757]
[1735765279460,12.71669187,194.58,194.5,2.5757]
[1735765280860,12.71669187,194.58,194.48,5.5558]
[1735765282058,12.71669187,194.55,194.48,2.98]
[1735765282458,12.71669187,194.52,194.44,5.5563]
[1735765282658,12.71669187,194.52,194.44,2.98]
[1735765282863,12.71669187,194.52,194.45,4.98010976]
[1735765283160,12.71669187,194.52,194.44,2.98]
[1735765283961,12.71669187,194.52,194.47,2.576]
[1735765284161,12.71669187,194.55,194.45,4.97975051]
[1735765284361,12.71669187,194.55,194.44,2.98]
[1735765285151,12.71669187,194.55,194.45,4.97770733]
[1735765285352,12.71669187,194.58,194.51,2.5754]
[1735765285554,12.71669187,194.58,194.5,2.98]
[1735765286364,12.71669187,194.58,194.51,2.5754]
[1735765286560,12.71669187,194.58,194.5,2.98]
[1735765287360,12.71669187,194.58,194.53,2.5752]
[1735765287564,12.71669187,194.61,194.53,2.5752]
[1735765287764,12.71669187,194.61,194.5,2.98]
[1735765287968,12.71669187,194.61,194.54,2.575]
[1735765289465,12.71669187,194.61,194.53,2.5753]
[1735765289662,12.71669187,194.58,194.51,3.2002]
[1735765289867,12.71669187,194.58,194.51,6.1802]
[1735765290064,12.71669187,194.58,194.52,2.5753]
[1735765290258,12.71669187,194.58,194.51,6.1802]
[1735765291065,12.71669187,194.58,194.52,2.5754]
[1735765291267,12.71669187,194.58,194.51,6.1802]
[1735765292460,12.71669187,194.58,194.51,8.7557]
[1735765293771,12.71669187,194.58,194.51,6.1802]
[1735765294172,12.71669187,194.58,194.53,2.5752]
[1735765296768,12.71669187,194.61,194.54,2.575]
[1735765297064,12.71669187,194.61,194.51,6.1802]
[1735765297466,12.71669187,194.61,194.55,2.575]
[1735765297667,12.71669187,194.61,194.51,6.1802]
[1735765297873,12.71669187,194.58,194.51,6.1802]
[1735765298369,12.71669187,194.58,194.43,32.19815338]
[1735765298570,12.71669187,194.58,194.49,2.5757]
[1735765298872,12.71669187,194.58,194.44,22.33246322]
[1735765299170,12.71669187,194.58,194.53,2.5752]
[1735765299370,12.71669187,194.58,194.48,2.98]
[1735765299674,12.71669187,194.58,194.53,2.5752]
[1735765300966,12.71669187,194.61,194.48,2.98]
[1735765301368,12.71669187,194.61,194.49,4.97287412]
[1735765301574,12.71669187,194.61,194.55,2.5749]
[1735765302572,12.71669187,194.61,194.56,2.5748]
[1735765304174,12.71669187,194.61,194.57,2.5747]
[1735765304381,2.98,194.65,194.57,2.5747]
[1735765304382,8.13561559,194.6,194.57,2.5747]
[1735765304871,8.13561559,194.62,194.55,8.13561559]
[1735765305272,8.13561559,194.62,194.55,9.70431559]
[1735765306671,8.13561559,194.62,194.58,2.5746]
[1735765307473,8.13561559,194.62,194.56,5.5548]
[1735765307774,8.13561559,194.62,194.56,2.98]
[1735765308976,8.13561559,194.62,194.58,2.5745]
[1735765311176,8.13561559,194.62,194.59,2.5744]
[1735765311981,8.13561559,194.62,194.6,2.5743]
[1735765312170,8.13561559,194.64,194.57,8.13561559]
[1735765312875,8.13561559,194.65,194.57,8.13561559]
[1735765313273,8.13561559,194.65,194.59,8.13561559]
[1735765314483,8.13561559,194.65,194.62,2.5739]
[1735765314683,8.13561559,194.65,194.62,5.5339]
[1735765317676,60.66890119,194.74,194.62,2.96]
[1735765317877,8.13561559,194.68,194.62,2.96]
[1735765318381,8.13561559,194.68,194.64,2.5738]
[1735765319682,8.13561559,194.66,194.62,5.534]
[1735765319880,8.13561559,194.66,194.62,2.96]
[1735765321480,8.13561559,194.66,194.63,2.5739]
[1735765321980,8.13561559,194.66,194.62,2.96]
[1735765322179,8.13561559,194.64,194.59,2.96]
[1735765323686,8.13561559,194.64,194.6,2.5742]
[1735765324278,8.13561559,194.64,194.59,2.96]
[1735765324485,57.32309759,194.75,194.62,8.13561559]
[1735765324783,8.13561559,194.68,194.62,8.13561559]
[1735765325380,8.13561559,194.7,194.64,8.13561559]
[1735765325579,8.13561559,194.7,194.65,2.96]
[1735765325779,8.13561559,194.7,194.65,5.5336]
[1735765326085,8.13561559,194.7,194.65,2.96]
[1735765326477,8.13561559,194.68,194.65,2.96]
[1735765328088,8.13561559,194.66,194.62,2.96]
[1735765328387,8.13561559,194.64,194.62,2.96]
[1735765328980,8.13561559,194.64,194.61,2.5742]
[1735765329187,8.13561559,194.64,194.6,2.5743]
[1735765329485,8.13561559,194.64,194.59,2.96]
[1735765330382,12.70617235,194.67,194.59,2.96]
[1735765331185,12.70617235,194.7,194.59,2.96]
[1735765331590,2.96,194.71,194.63,2.5738]
[1735765331783,15.66617235,194.71,194.59,2.96]
[1735765332084,12.70617235,194.71,194.59,2.96]
[1735765333883,12.70617235,194.71,194.63,2.5738]
[1735765334282,12.70617235,194.68,194.55,1.5687]
[1735765334483,12.70617235,194.65,194.59,2.96]
[1735765335385,12.70617235,194.68,194.6,2.5743]
[1735765336292,12.70617235,194.68,194.55,1.5687]
[1735765336490,12.70617235,194.65,194.56,2.96]
[1735765337589,12.70617235,194.65,194.57,2.5747]
[1735765338490,12.70617235,194.65,194.56,2.96]
[1735765338689,12.70617235,194.65,194.58,2.5746]
[1735765338891,12.70617235,194.65,194.56,2.96]
[1735765339193,12.70617235,194.68,194.59,2.5745]
[1735765340883,57.1333097,194.7,194.57,2.96]
[1735765341089,69.83948205,194.7,194.57,2.96]
[1735765341688,57.1333097,194.69,194.57,2.96]
[1735765342293,12.70617235,194.7,194.57,2.96]
[1735765342791,12.70617235,194.67,194.57,2.96]
[1735765344192,12.70617235,194.67,194.59,2.5744]
[1735765346493,15.68617235,194.67,194.59,2.5744]
[1735765349095,15.68617235,194.67,194.58,2.5746]
[1735765352196,8.13310382,194.63,194.58,2.5746]
[1735765352793,4.4616432,194.7,194.57,2.96]
[1735765352991,8.13310382,194.66,194.57,2.96]
[1735765353197,8.13310382,194.66,194.58,8.13310382]
[1735765353407,8.13310382,194.66,194.62,2.574]
[1735765354000,8.13310382,194.64,194.57,2.96]
[1735765354200,8.13310382,194.64,194.59,2.5744]
[1735765354498,8.13310382,194.62,194.57,2.96]
[1735765354698,7.44217259,194.7,194.57,5.5346]
[1735765354889,8.13310382,194.63,194.57,2.96]
[1735765355094,8.13310382,194.63,194.57,11.09310382]
[1735765355493,8.13310382,194.63,194.59,2.5744]
[1735765355996,8.13310382,194.63,194.57,11.09310382]
[1735765356794,8.13310382,194.65,194.57,11.09310382]
[1735765357192,8.13310382,194.65,194.59,2.5744]
[1735765357990,57.1333097,194.71,194.66,2.5734]
[1735765358293,57.1333097,194.71,194.66,5.5534]
[1735765358502,8.13310382,194.72,194.67,2.5734]
[1735765358993,8.13310382,194.72,194.66,2.98]
[1735765358994,57.1333097,194.75,194.68,2.5732]
[1735765359199,8.13310382,194.74,194.67,8.13310382]
[1735765360894,8.13310382,194.74,194.68,2.5732]
[1735765361804,8.13310382,194.72,194.67,10.70650382]
[1735765362001,8.13310382,194.72,194.67,2.5734]
[1735765362299,8.13310382,194.72,194.66,2.98]
[1735765362707,8.13310382,194.7,194.66,2.98]
[1735765366898,8.13310382,194.68,194.61,6.0072]
[1735765367102,8.13310382,194.66,194.61,2.98]
[1735765368509,8.13310382,194.66,194.62,2.5741]
[1735765369207,8.13310382,194.66,194.61,2.98]
[1735765369704,8.13310382,194.66,194.61,5.5542]
[1735765371008,2.98,194.73,194.61,5.5542]
[1735765371210,8.13310382,194.67,194.62,2.5741]
[1735765374108,8.13310382,194.67,194.61,5.5542]
[1735765379415,8.13310382,194.67,194.61,2.98]
[1735765379612,8.13310382,194.67,194.62,2.5741]
[1735765380914,8.13310382,194.67,194.63,2.5739]
[1735765381213,2.98,194.71,194.63,8.13310382]
[1735765381214,8.13310382,194.69,194.63,8.13310382]
[1735765381911,8.13310382,194.69,194.64,2.5737]
[1735765382212,8.13310382,194.69,194.63,8.13310382]
[1735765382614,8.13310382,194.69,194.61,8.13310382]
[1735765384014,8.13310382,194.69,194.62,4.95632273]
[1735765384315,8.13310382,194.69,194.64,2.5738]
[1735765385312,8.13310382,194.69,194.65,2.5736]
[1735765386613,8.13310382,194.67,194.6,2.98]
[1735765387409,8.13310382,194.67,194.62,2.574]
[1735765388513,8.13310382,194.67,194.61,2.5742]
[1735765389012,8.13310382,194.67,194.62,2.574]
[1735765390312,8.13310382,194.67,194.59,8.13310382]
[1735765390511,8.13310382,194.67,194.63,2.5739]
[1735765390914,2.98,194.7,194.63,2.5739]
[1735765391115,8.13310382,194.67,194.63,2.5739]
[1735765391417,8.13310382,194.67,194.62,2.574]
[1735765392014,2.98,194.7,194.63,2.5739]
[1735765392219,8.13310382,194.67,194.63,2.5739]
[1735765393321,57.1333097,194.74,194.61,8.13310382]
[1735765393520,8.13310382,194.69,194.61,8.13310382]
[1735765393726,8.13310382,194.69,194.62,6.4431589]
[1735765394025,8.13310382,194.69,194.62,3.1]
[1735765394417,8.13310382,194.69,194.64,2.5738]
[1735765394725,8.13310382,194.69,194.62,3.1]
[1735765395729,8.13310382,194.69,194.64,2.5738]
[1735765395927,8.13310382,194.69,194.62,3.1]
[1735765396633,8.13310382,194.69,194.65,2.5736]
[1735765396827,8.13310382,194.69,194.62,3.1]
[1735765398535,8.13310382,194.69,194.65,2.5736]
[1735765398835,8.13310382,194.69,194.62,3.1]
[1735765399133,8.13310382,194.69,194.64,2.5738]
[1735765399835,8.13310382,194.69,194.66,2.5735]
[1735765401433,8.13310382,194.7,194.66,2.5735]
[1735765402028,8.13310382,194.7,194.64,2.5737]
[1735765403132,8.13310382,194.7,194.65,2.5737]
[1735765406238,57.1333097,194.76,194.64,2.96]
[1735765406433,57.1333097,194.76,194.65,8.13310382]
[1735765406737,8.13310382,194.73,194.65,13.09069435]
[1735765406932,8.13310382,194.73,194.68,2.5732]
[1735765407133,8.13310382,194.73,194.65,8.13310382]
[1735765407327,8.13310382,194.69,194.64,2.96]
[1735765410841,8.13310382,194.67,194.62,6.06]
[1735765411039,8.13310382,194.67,194.63,4.95796247]
[1735765411239,8.13310382,194.67,194.62,3.1]
[1735765411436,8.13310382,194.65,194.57,1.6091]
[1735765411642,8.13310382,194.65,194.59,2.5745]
[1735765412032,8.13310382,194.65,194.6,4.95796346]
[1735765412443,8.13310382,194.65,194.59,2.5745]
[1735765413245,8.13310382,194.65,194.58,11.09310382]
[1735765413446,8.13310382,194.63,194.58,2.96]
[1735765413741,8.13310382,194.63,194.57,1.6091]
[1735765413944,8.13310382,194.61,194.56,2.96]
[1735765414338,8.13310382,194.61,194.57,4.95673229]
[1735765414638,8.13310382,194.61,194.56,2.96]
[1735765414938,8.13310382,194.61,194.55,3.1542]
[1735765415140,8.13310382,194.57,194.56,4.95611726]
[1735765415340,8.13310382,194.57,194.51,1.73679037]
[1735765415543,8.13310382,194.55,194.5,2.96]
[1735765416241,8.13310382,194.53,194.47,6.0964]
[1735765417548,8.13310382,194.51,194.45,2.5763]
[1735765418442,2.96,194.54,194.45,2.5763]
[1735765418648,8.13310382,194.51,194.46,2.5762]
[1735765418848,2.96,194.54,194.46,2.5762]
[1735765419049,8.13310382,194.51,194.46,2.5762]
[1735765419444,8.13310382,194.51,194.43,6.1925]
[1735765419643,8.13310382,194.51,194.45,8.13310382]
[1735765421045,2.96,194.54,194.45,8.13310382]
[1735765421046,8.13310382,194.53,194.45,8.13310382]
[1735765421447,8.13310382,194.53,194.47,2.576]
[1735765422751,8.13310382,194.53,194.47,8.13310382]
[1735765423351,8.13310382,194.53,194.49,2.5757]
[1735765428455,8.13310382,194.53,194.5,2.5755]
[1735765428657,8.13310382,194.53,194.47,8.13310382]
[1735765429457,8.13310382,194.53,194.51,2.5754]
[1735765429858,8.13310382,194.55,194.51,2.5754]
[1735765430062,8.13310382,194.55,194.52,2.5753]
[1735765430957,8.13310382,194.55,194.51,2.5754]
[1735765431855,8.13310382,194.57,194.49,8.13310382]
[1735765432059,8.13310382,194.57,194.51,8.13310382]
[1735765432460,8.13310382,194.57,194.53,2.5753]
[1735765432649,8.13310382,194.57,194.51,8.13310382]
[1735765433554,8.13310382,194.57,194.54,2.5751]
[1735765435364,8.13310382,194.57,194.56,2.5749]
[1735765435661,2.96,194.61,194.56,2.5749]
[1735765435662,8.13310382,194.59,194.56,2.5749]
[1735765437558,8.13310382,194.57,194.53,2.5752]
[1735765441867,8.13310382,194.57,194.54,2.5751]
[1735765442766,8.13310382,194.57,194.49,8.13310382]
[1735765443867,8.13310382,194.57,194.53,2.5752]
[1735765444859,8.13310382,194.55,194.5,2.5756]
[1735765445059,8.13310382,194.53,194.5,2.5756]
[1735765445372,8.13310382,194.53,194.46,11.09310382]
[1735765445563,8.13310382,194.53,194.47,3.0846]
[1735765446459,8.13310382,194.53,194.51,2.5754]
[1735765446670,2.5749,194.56,194.47,3.0846]
[1735765446671,8.13310382,194.55,194.48,8.13310382]
[1735765447964,8.13310382,194.55,194.51,2.5754]
[1735765448162,8.13310382,194.57,194.5,8.13310382]
[1735765448569,8.13310382,194.59,194.56,2.5749]
[1735765448768,57.1333097,194.65,194.54,8.13310382]
[1735765448769,8.13310382,194.61,194.54,8.13310382]
[1735765449966,8.13310382,194.61,194.54,11.18500382]
[1735765451372,8.13310382,194.61,194.56,2.5748]
[1735765452066,10.70730382,194.61,194.56,2.5748]
[1735765452869,2.5742,194.61,194.56,2.5748]
[1735765453075,8.13310382,194.62,194.55,8.13310382]
[1735765453369,8.13310382,194.62,194.58,2.5745]
[1735765453572,8.13310382,194.62,194.55,8.13310382]
[1735765453774,10.70720382,194.62,194.57,2.5747]
[1735765453973,8.13310382,194.6,194.54,3.0519]
[1735765455475,10.70750382,194.6,194.55,2.5749]
[1735765457778,10.70750382,194.6,194.56,2.5748]
[1735765458077,10.70750382,194.6,194.57,1.43]
[1735765461387,8.13310382,194.6,194.57,1.43]
[1735765461785,8.13310382,194.58,194.57,1.43]
[1735765462590,10.70770382,194.58,194.57,1.43]
[1735765463291,2.5749,194.57,194.52,2.5753]
[1735765463495,8.13310382,194.58,194.52,2.5753]
[1735765464890,8.13310382,194.58,194.51,11.09310382]
[1735765465091,2.5748,194.57,194.53,2.5753]
[1735765466491,8.13310382,194.58,194.51,11.09310382]
[1735765467392,8.13310382,194.58,194.55,2.5749]
[1735765467994,8.13310382,194.58,194.51,2.96]
[1735765468198,8.13310382,194.58,194.54,2.5751]
[1735765468890,8.13310382,194.58,194.51,11.09310382]
[1735765469091,8.13310382,194.58,194.55,2.5749]
[1735765470385,8.13310382,194.59,194.55,2.5749]
[1735765470589,8.13310382,194.61,194.56,2.5748]
[1735765471286,10.70730382,194.61,194.56,2.5748]
[1735765471794,8.13310382,194.61,194.58,2.5745]
[1735765475694,8.13310382,194.61,194.59,2.5744]
[1735765477494,8.13310382,194.63,194.6,3.0943]
[1735765478498,2.574,194.63,194.6,0.52]
[1735765478694,10.70710382,194.63,194.6,0.52]
[1735765480496,8.13310382,194.61,194.6,0.52]
[1735765480697,10.70730382,194.61,194.6,0.52]
[1735765481499,8.13310382,194.61,194.6,0.52]
[1735765482799,8.13310382,194.64,194.6,0.52]
[1735765484110,8.13310382,194.66,194.6,0.52]
[1735765484303,8.13310382,194.66,194.6,3.48]
[1735765484603,8.13310382,194.66,194.61,2.5741]
[1735765484806,8.13310382,194.66,194.6,3.48]
[1735765485408,8.13310382,194.66,194.62,2.574]
[1735765485706,60.0933097,194.71,194.6,11.61310382]
[1735765485908,2.573,194.7,194.62,8.13310382]
[1735765486205,8.13310382,194.68,194.62,8.13310382]
[1735765487505,8.13310382,194.68,194.64,2.5737]
[1735765489308,10.70640382,194.68,194.63,2.5739]
[1735765489709,8.13310382,194.66,194.6,8.13310382]
[1735765490006,8.13310382,194.66,194.62,2.574]
[1735765491404,10.70660382,194.66,194.62,2.574]
[1735765492608,8.13310382,194.66,194.62,2.574]
[1735765494112,8.13310382,194.66,194.63,0.52]
[1735765495407,8.13310382,194.66,194.63,3.0939]
[1735765500014,8.13310382,194.64,194.63,0.52]
[1735765500812,10.70690382,194.64,194.63,0.52]
[1735765501012,8.13310382,194.64,194.57,2.5746]
[1735765501212,8.13310382,194.6,194.57,2.5746]
[1735765501610,8.13310382,194.6,194.58,2.5746]
[1735765501808,8.13310382,194.6,194.56,1.5038]
[1735765503218,8.13310382,194.6,194.57,2.5746]
[1735765507823,8.13310382,194.58,194.51,3.1458]
[1735765508121,8.13310382,194.58,194.51,6.1058]
[1735765508321,8.13310382,194.58,194.53,2.5752]
[1735765508713,8.13310382,194.54,194.47,31.17186874]
[1735765508919,8.13310382,194.52,194.48,4.89230959]
[1735765509319,8.13310382,194.52,194.46,1.59]
[1735765509818,8.13310382,194.52,194.47,2.5759]
[1735765510726,8.13310382,194.52,194.46,1.59]
[1735765510926,8.13310382,194.52,194.47,8.13310382]
[1735765511229,8.13310382,194.54,194.47,8.13310382]
[1735765511524,8.13310382,194.54,194.5,2.5755]
[1735765512526,8.13310382,194.54,194.51,2.5755]
[1735765513822,8.13310382,194.54,194.5,2.5757]
[1735765514017,8.13310382,194.56,194.49,8.13310382]
[1735765514219,8.13310382,194.56,194.51,8.13310382]
[1735765514424,8.13310382,194.58,194.55,2.5749]
[1735765516519,8.13310382,194.56,194.54,2.5751]
[1735765516724,8.13310382,194.56,194.52,2.96]
[1735765517024,8.13310382,194.54,194.48,2.96]
[1735765517328,8.13310382,194.54,194.5,2.5755]
[1735765517523,8.13310382,194.54,194.48,2.96]
[1735765517724,8.13310382,194.52,194.48,2.96]
[1735765518119,8.13310382,194.5,194.47,2.576]
[1735765518324,8.13310382,194.48,194.44,2.96]
[1735765518525,8.13310382,194.5,194.43,11.09310382]
[1735765519026,8.13310382,194.5,194.47,2.576]
[1735765520627,8.13310382,194.5,194.43,11.09310382]
[1735765521130,8.13310382,194.48,194.43,2.96]
[1735765522329,8.13310382,194.48,194.43,2.5766]
[1735765522530,8.13310382,194.46,194.41,1.5578]
[1735765523134,8.13310382,194.44,194.41,4.1345]
[1735765523429,8.13310382,194.42,194.38,1.5344]
[1735765523840,10.70990382,194.42,194.37,2.96]
[1735765524030,8.13310382,194.42,194.37,2.96]
[1735765525437,8.13310382,194.44,194.37,11.09310382]
[1735765526032,8.13310382,194.46,194.39,8.13310382]
[1735765526230,2.96,194.51,194.4,1.6004]
[1735765526433,8.13310382,194.47,194.45,2.5762]
[1735765527537,8.13310382,194.47,194.44,2.5764]
[1735765529438,8.13310382,194.47,194.42,2.96]
[1735765529735,8.13310382,194.47,194.45,2.5763]
[1735765532139,2.5755,194.52,194.46,2.5761]
[1735765532345,8.13310382,194.47,194.46,2.5761]
[1735765533539,8.13310382,194.47,194.45,2.5763]
[1735765533746,8.13310382,194.47,194.41,1.4823]
[1735765533946,8.13310382,194.44,194.41,1.4823]
[1735765534144,8.13310382,194.44,194.42,2.5767]
[1735765535143,8.13310382,194.44,194.4,4.1773]
[1735765535344,8.13310382,194.44,194.4,1.6004]
[1735765536547,8.13310382,194.44,194.42,2.5767]
[1735765537446,8.13310382,194.44,194.43,2.5766]
[1735765538350,8.13310382,194.44,194.4,1.6004]
[1735765538649,8.13310382,194.44,194.42,2.5767]
[1735765539352,8.13310382,194.46,194.4,1.6004]
[1735765539547,8.13310382,194.48,194.41,9.71390382]
[1735765542355,8.13310382,194.48,194.46,2.5762]
[1735765542652,2.5755,194.51,194.46,2.5762]
[1735765542853,8.13310382,194.49,194.46,2.5762]
[1735765543555,8.13310382,194.47,194.46,2.5762]
[1735765543947,8.13310382,194.47,194.44,2.96]
[1735765544951,2.5758,194.49,194.44,2.96]
[1735765545155,8.13310382,194.47,194.44,2.96]
[1735765545356,8.13310382,194.47,194.44,5.5363]
[1735765546361,8.13310382,194.47,194.45,2.5763]
[1735765546561,8.13310382,194.47,194.41,9.71390382]
[1735765546751,8.13310382,194.47,194.42,2.96]
[1735765547461,8.13310382,194.47,194.45,2.5763]
[1735765550362,8.13310382,194.49,194.42,2.96]
[1735765552163,8.13310382,194.47,194.42,2.96]
[1735765553461,8.13310382,194.47,194.44,2.5764]
[1735765554963,8.13310382,194.47,194.42,2.96]
[1735765555859,2.96,194.54,194.42,2.96]
[1735765556060,8.13310382,194.48,194.42,2.96]
[1735765556260,8.13310382,194.48,194.46,2.5761]
[1735765556759,8.13310382,194.48,194.47,2.5761]
[1735765557564,8.13310382,194.48,194.46,2.5762]
[1735765558661,8.13310382,194.48,194.43,2.5765]
[1735765558862,8.13310382,194.48,194.42,2.96]
[1735765559466,10.70900382,194.48,194.44,2.5764]
[1735765560566,8.13310382,194.46,194.44,2.5764]
[1735765560864,8.13310382,194.46,194.41,4.5408]
[1735765561064,8.13310382,194.46,194.43,2.5766]
[1735765562368,8.13310382,194.46,194.41,4.5408]
[1735765563066,8.13310382,194.46,194.43,2.5765]
[1735765563869,8.13310382,194.44,194.41,2.96]
[1735765564072,8.13310382,194.42,194.36,2.96]
[1735765564273,8.13310382,194.4,194.37,8.95785446]
[1735765564462,8.13310382,194.4,194.37,7.4947495]
[1735765564664,8.13310382,194.4,194.37,2.5773]
[1735765565966,8.13310382,194.4,194.34,5.64371294]
[1735765565967,8.13310382,194.4,194.36,2.5775]
[1735765566168,8.13310382,194.38,194.34,6.0187]
[1735765566668,8.13310382,194.38,194.35,4.91924204]
[1735765566866,8.13310382,194.38,194.34,2.96]
[1735765567368,8.13310382,194.38,194.36,2.5775]
[1735765567965,8.13310382,194.38,194.34,2.96]
[1735765568366,8.13310382,194.38,194.35,2.5775]
[1735765568669,8.13310382,194.41,194.34,11.09310382]
[1735765568869,8.13310382,194.41,194.35,2.96]
[1735765570068,8.13310382,194.39,194.35,2.96]
[1735765570860,8.13310382,194.39,194.32,8.13310382]
[1735765571059,8.13310382,194.37,194.33,2.96]
[1735765571768,8.13310382,194.37,194.32,2.578]
[1735765571973,8.13310382,194.37,194.32,2.96]
[1735765573175,8.13310382,194.37,194.32,2.578]
[1735765574273,8.13310382,194.37,194.33,2.5779]
[1735765574467,8.13310382,194.37,194.3,11.09310382]
[1735765574970,8.13310382,194.37,194.35,2.5776]
[1735765575369,8.13310382,194.39,194.36,2.5775]
[1735765577471,8.13310382,194.41,194.37,2.5774]
[1735765577769,8.13310382,194.41,194.35,2.96]
[1735765580375,8.13310382,194.41,194.37,2.5773]
[1735765580572,8.13310382,194.41,194.35,2.96]
[1735765580774,8.13310382,194.43,194.35,2.96]
[1735765582178,8.13310382,194.41,194.35,2.96]
[1735765582472,8.13310382,194.41,194.37,2.5773]
[1735765582880,8.13310382,194.41,194.35,2.96]
[1735765584476,8.13310382,194.41,194.38,2.5772]
[1735765585780,8.13310382,194.41,194.37,2.5774]
[1735765586875,8.13310382,194.39,194.36,2.5775]
[1735765587376,8.13310382,194.39,194.35,2.5776]
[1735765592782,8.13310382,194.37,194.33,2.96]
[1735765592978,8.13310382,194.37,194.34,2.5777]
[1735765593385,8.13310382,194.37,194.3,8.13310382]
[1735765593581,8.13310382,194.35,194.32,2.578]
[1735765593889,8.13310382,194.33,194.29,3.0848]
[1735765594082,8.13310382,194.33,194.3,4.91034052]
[1735765594283,8.13310382,194.33,194.3,7.48854052]
[1735765594484,8.13310382,194.33,194.29,3.0848]
[1735765594887,8.13310382,194.35,194.29,3.0848]
[1735765595190,57.1333097,194.48,194.3,4.9103089]
[1735765595380,8.13310382,194.36,194.3,4.9103089]
[1735765595585,8.13310382,194.32,194.29,3.0848]
[1735765596089,8.13310382,194.32,194.3,4.91202448]
[1735765596483,8.13310382,194.32,194.29,5.6632]
[1735765596681,8.13310382,194.32,194.29,3.0848]
[1735765596879,8.13310382,194.3,194.29,3.0848]
[1735765597079,57.1333097,194.47,194.29,11.21790382]
[1735765597286,57.1333097,194.47,194.3,2.96]
[1735765597492,8.13310382,194.4,194.33,8.13310382]
[1735765597793,8.13310382,194.41,194.37,2.5773]
[1735765598280,8.13310382,194.41,194.33,8.13310382]
[1735765598482,8.13310382,194.41,194.38,2.5772]
[1735765599180,8.13310382,194.39,194.36,2.5774]
[1735765599484,8.13310382,194.39,194.31,8.13310382]
[1735765599681,8.13310382,194.39,194.35,2.5776]
[1735765599884,8.13310382,194.39,194.31,8.13310382]
[1735765600085,8.13310382,194.41,194.33,8.13310382]
[1735765600285,8.13310382,194.41,194.37,2.5773]
[1735765601588,2.5763,194.46,194.39,2.577]
[1735765601894,8.13310382,194.43,194.37,11.09310382]
[1735765602086,8.13310382,194.43,194.38,2.96]
[1735765602991,8.13310382,194.43,194.4,2.5769]
[1735765604592,8.13310382,194.45,194.38,2.96]
[1735765604990,8.13310382,194.45,194.39,4.9149226]
[1735765605386,8.13310382,194.45,194.44,2.5765]
[1735765605590,8.13310382,194.47,194.44,2.5765]
[1735765605794,57.1333097,194.52,194.43,2.96]
[1735765605988,65.26641352,194.52,194.45,8.13310382]
[1735765606294,8.13310382,194.52,194.45,8.13310382]
[1735765606495,8.13310382,194.54,194.47,8.13310382]
[1735765606898,8.13310382,194.54,194.48,2.96]
[1735765607495,8.13310382,194.54,194.5,2.5755]
[1735765608094,8.13310382,194.54,194.48,2.96]
[1735765608290,8.13310382,194.54,194.51,2.5755]
[1735765610388,2.96,194.61,194.51,2.5755]